fUST/lending_fUST_20250206
["ID","MTS","AMOUNT","RATE_DAILY","PERIOD"]
[351807154,1738794648345,-422.51255311,0.00013835,2]
[351807155,1738794648355,-500.0,0.00013835,2]
[351807156,1738794648366,-1632.44,0.00013835,2]
[351807157,1738794648377,-500.0,0.00013835,2]
[351807158,1738794648387,-501.20315006,0.00013835,2]
[351807159,1738794648398,-500.0,0.00013835,2]
[351807160,1738794648410,-509.89494852,0.00013835,2]
[351807161,1738794648421,-500.0,0.00013835,2]
[351807162,1738794648432,-428.83997759,0.00013835,2]
[351807163,1738794648442,-500.0,0.00013835,2]
[351807164,1738794648452,-500.0,0.00013835,2]
[351807165,1738794648461,-817.63,0.00013835,2]
[351807166,1738794648472,-500.0,0.00013835,2]
[351807167,1738794648483,-500.0,0.00013835,2]
[351807168,1738794648493,-500.0,0.00013835,2]
[351807169,1738794648504,-500.0,0.00013835,2]
[351807170,1738794648514,-500.0,0.00013835,2]
[351807171,1738794648525,-1000.0,0.00013835,2]
[351807172,1738794648535,-500.0,0.00013835,2]
[351807173,1738794648546,-544.93240549,0.00013835,2]
[351807174,1738794648556,-500.0,0.00013835,2]
[351807175,1738794648567,-500.0,0.00013835,2]
[351807176,1738794648578,-500.0,0.00013835,2]
[351807177,1738794648589,-511.64698148,0.00013835,2]
[351807178,1738794648600,-230.83926229,0.00013835,2]
[351807179,1738794648611,-226.42980137,0.00013835,2]
[351807180,1738794648622,-500.0,0.00013835,2]
[351807181,1738794648632,-522.87038383,0.00013835,2]
[351807182,1738794648643,-500.0,0.00013835,2]
[351807183,1738794648653,-500.0,0.00013835,2]
[351807184,1738794648665,-393.0,0.00013835,2]
[351807185,1738794648676,-281.53772769,0.00013835,2]
[351807186,1738794648686,-268.07552366,0.00013835,2]
[351807187,1738794648697,-500.0,0.00013835,2]
[351807188,1738794648708,-500.0,0.00013835,2]
[351807189,1738794648719,-500.0,0.00013835,2]
[351807190,1738794648729,-500.0,0.00013835,2]
[351807191,1738794648740,-500.0,0.00013835,2]
[351807192,1738794648750,-500.0,0.00013835,2]
[351807193,1738794648760,-502.42819887,0.00013835,2]
[351807194,1738794648771,-500.0,0.00013835,2]
[351807195,1738794648781,-500.0,0.00013835,2]
[351807196,1738794648796,-906.69,0.00013835,2]
[351807197,1738794648806,-500.0,0.00013835,2]
[351807198,1738794648817,-500.0,0.00013835,2]
[351807199,1738794648827,-252.24007145,0.00013835,2]
[351807200,1738794648837,-500.0,0.00013835,2]
[351807201,1738794648847,-500.0,0.00013835,2]
[351807202,1738794648857,-500.0,0.00013835,2]
[351807203,1738794648867,-280.72192247,0.00013835,2]
[351807204,1738794648877,-500.0,0.00013835,2]
[351807205,1738794648887,-501.55642339,0.00013835,2]
[351807206,1738794648897,-500.0,0.00013835,2]
[351807207,1738794648907,-500.0,0.00013835,2]
[351807208,1738794648918,-500.0,0.00013835,2]
[351807209,1738794648928,-505.66110072,0.00013835,2]
[351807210,1738794648938,-500.0,0.00013835,2]
[351807211,1738794648948,-500.0,0.00013835,2]
[351807212,1738794648958,-500.0,0.00013835,2]
[351807213,1738794648968,-500.0,0.00013835,2]
[351807214,1738794648977,-500.0,0.00013835,2]
[351807215,1738794648987,-500.0,0.00013835,2]
[351807216,1738794648997,-957.6,0.00013835,2]
[351807217,1738794649007,-500.0,0.00013835,2]
[351807218,1738794649017,-500.0,0.00013835,2]
[351807219,1738794649027,-500.0,0.00013835,2]
[351807220,1738794649037,-1236.16,0.00013835,2]
[351807221,1738794649048,-500.0,0.00013835,2]
[351807222,1738794649058,-500.0,0.00013835,2]
[351807223,1738794649068,-631.90590006,0.00013835,2]
[351807224,1738794649078,-500.0,0.00013835,2]
[351807225,1738794649088,-500.0,0.00013835,2]
[351807226,1738794649098,-500.0,0.00013835,2]
[351807227,1738794649108,-673.53,0.00013835,2]
[351807228,1738794649118,-1837.39,0.00013835,2]
[351807229,1738794649127,-500.0,0.00013835,2]
[351807230,1738794649137,-500.0,0.00013835,2]
[351807231,1738794649147,-500.0,0.00013835,2]
[351807232,1738794649157,-500.0,0.00013835,2]
[351807233,1738794649168,-500.0,0.00013835,2]
[351807234,1738794649177,-500.0,0.00013835,2]
[351807235,1738794649187,-500.0,0.00013835,2]
[351807236,1738794649197,-578.38,0.00013835,2]
[351807237,1738794649208,-500.0,0.00013835,2]
[351807238,1738794649219,-500.0,0.00013835,2]
[351807239,1738794649229,-500.0,0.00013835,2]
[351807240,1738794649240,-500.0,0.00013835,2]
[351807241,1738794649250,-500.0,0.00013835,2]
[351807242,1738794649259,-500.0,0.00013835,2]
[351807243,1738794649269,-500.0,0.00013835,2]
[351807244,1738794649279,-500.0,0.00013835,2]
[351807245,1738794649289,-500.0,0.00013835,2]
[351807246,1738794649299,-500.0,0.00013835,2]
[351807247,1738794649309,-760.09,0.00013835,2]
[351807248,1738794649319,-791.04,0.00013835,2]
[351807249,1738794649329,-659.31,0.00013835,2]
[351807250,1738794649338,-500.0,0.00013835,2]
[351807251,1738794649348,-500.0,0.00013835,2]
[351807252,1738794649357,-475.30633217,0.00013835,2]
[351807253,1738794649368,-506.91672502,0.00013835,2]
[351807254,1738794649378,-626.95,0.00013835,2]
[351807255,1738794649387,-636.77969313,0.00013835,2]
[351807256,1738794649397,-500.0,0.00013835,2]
[351807257,1738794649407,-500.0,0.00013835,2]
[351807258,1738794649420,-500.0,0.00013835,2]
[351807259,1738794649429,-500.0,0.00013835,2]
[351807260,1738794649439,-500.0,0.00013835,2]
[351807261,1738794649449,-511.92,0.00013835,2]
[351807262,1738794649459,-500.0,0.00013835,2]
[351807263,1738794649469,-589.52,0.00013835,2]
[351807264,1738794649479,-500.0,0.00013835,2]
[351807265,1738794649489,-609.34,0.00013835,2]
[351807266,1738794649499,-726.35,0.00013835,2]
[351807267,1738794649510,-500.0,0.00013835,2]
[351807268,1738794649520,-500.0,0.00013835,2]
[351807269,1738794649529,-1704.96,0.00013835,2]
[351807270,1738794649539,-500.0,0.00013835,2]
[351807271,1738794649548,-500.0,0.00013835,2]
[351807272,1738794649558,-1191.32,0.00013835,2]
[351807273,1738794649568,-552.4757375,0.00013835,2]
[351807274,1738794649577,-500.0,0.00013835,2]
[351807275,1738794649587,-522.31791912,0.00013835,2]
[351807276,1738794649596,-500.0,0.00013835,2]
[351807277,1738794649606,-500.0,0.00013835,2]
[351807278,1738794649616,-500.0,0.00013835,2]
[351807279,1738794649626,-1029.11,0.00013835,2]
[351807280,1738794649636,-500.0,0.00013835,2]
[351807281,1738794649645,-2406.69,0.00013835,2]
[351807282,1738794649655,-791.78,0.00013835,2]
[351807283,1738794649668,-755.09,0.00013835,2]
[351807284,1738794649679,-500.0,0.00013835,2]
[351807285,1738794649689,-500.0,0.00013835,2]
[351807286,1738794649699,-500.0,0.00013835,2]
[351807287,1738794649709,-500.0,0.00013835,2]
[351807288,1738794649719,-500.0,0.00013835,2]
[351807289,1738794649729,-2246.68,0.00013835,2]
[351807290,1738794649739,-500.0,0.00013835,2]
[351807291,1738794649749,-500.0,0.00013835,2]
[351807292,1738794649759,-500.0,0.00013835,2]
[351807293,1738794649769,-696.04,0.00013835,2]
[351807294,1738794649779,-500.0,0.00013835,2]
[351807295,1738794649789,-520.20760852,0.00013835,2]
[351807296,1738794649804,-505.62,0.00013835,2]
[351807297,1738794649813,-554.72,0.00013835,2]
[351807298,1738794649823,-633.61,0.00013835,2]
[351807299,1738794649833,-501.7655275,0.00013835,2]
[351807300,1738794649843,-500.0,0.00013835,2]
[351807301,1738794649853,-500.0,0.00013835,2]
[351807302,1738794649863,-500.0,0.00013835,2]
[351807303,1738794649988,-1932.73,0.00013835,2]
[351807304,1738794650017,-500.0,0.00013835,2]
[351807305,1738794650027,-723.66,0.00013835,2]
[351807306,1738794650036,-911.57,0.00013835,2]
[351807307,1738794650047,-500.0,0.00013835,2]
[351807308,1738794650056,-1455.37,0.00013835,2]
[351807309,1738794650065,-536.76494534,0.00013835,2]
[351807310,1738794650075,-500.0,0.00013835,2]
[351807311,1738794650084,-1059.18,0.00013835,2]
[351807312,1738794650094,-518.76109278,0.00013835,2]
[351807313,1738794650104,-500.0,0.00013835,2]
[351807314,1738794650113,-502.54,0.00013835,2]
[351807315,1738794650123,-500.0,0.00013835,2]
[351807316,1738794650132,-500.0,0.00013835,2]
[351807317,1738794650143,-1529.16,0.00013835,2]
[351807318,1738794650152,-500.0,0.00013835,2]
[351807319,1738794650162,-500.0,0.00013835,2]
[351807320,1738794650175,-880.95,0.00013835,2]
[351807321,1738794650184,-500.0,0.00013835,2]
[351807322,1738794650193,-722.31,0.00013835,2]
[351807323,1738794650203,-352.54752496,0.00013835,2]
[351807324,1738794650213,-500.0,0.00013835,2]
[351807325,1738794650223,-1271.69,0.00013835,2]
[351807326,1738794650233,-500.0,0.00013835,2]
[351807327,1738794650243,-1210.08,0.00013835,2]
[351807328,1738794650253,-500.0,0.00013835,2]
[351807329,1738794650263,-561.63,0.00013835,2]
[351807330,1738794650273,-500.0,0.00013835,2]
[351807331,1738794650283,-500.0,0.00013835,2]
[351807332,1738794650292,-500.0,0.00013835,2]
[351807333,1738794650301,-500.0,0.00013835,2]
[351807334,1738794650311,-608.82,0.00013835,2]
[351807335,1738794650321,-500.0,0.00013835,2]
[351807336,1738794650330,-535.09,0.00013835,2]
[351807337,1738794650340,-500.0,0.00013835,2]
[351807338,1738794650350,-2375.46,0.00013835,2]
[351807339,1738794650359,-730.83,0.00013835,2]
[351807340,1738794650369,-440.43738262,0.00013835,2]
[351807341,1738794650379,-500.0,0.00013835,2]
[351807342,1738794650389,-500.0,0.00013835,2]
[351807343,1738794650398,-500.0,0.00013835,2]
[351807344,1738794650409,-863.87,0.00013835,2]
[351807345,1738794650422,-1729.64,0.00013835,2]
[351807346,1738794650432,-3676.58,0.00013835,2]
[351807347,1738794650442,-414.51564704,0.00013835,2]
[351807348,1738794650452,-500.0,0.00013835,2]
[351807349,1738794650462,-500.0,0.00013835,2]
[351807350,1738794650472,-500.0,0.00013835,2]
[351807351,1738794650482,-572.16,0.00013835,2]
[351807352,1738794650491,-500.0,0.00013835,2]
[351807353,1738794650501,-1445.24,0.00013835,2]
[351807354,1738794650511,-1550.82,0.00013835,2]
[351807355,1738794650520,-1019.66,0.00013835,2]
[351807356,1738794650530,-674.07,0.00013835,2]
[351807357,1738794650539,-500.0,0.00013835,2]
[351807358,1738794650549,-500.0,0.00013835,2]
[351807359,1738794650558,-500.0,0.00013835,2]
[351807360,1738794650568,-500.0,0.00013835,2]
[351807361,1738794650578,-500.0,0.00013835,2]
[351807362,1738794650587,-500.0,0.00013835,2]
[351807363,1738794650596,-3778.69,0.00013835,2]
[351807364,1738794650606,-500.0,0.00013835,2]
[351807365,1738794650616,-515.94238992,0.00013835,2]
[351807366,1738794650625,-725.45,0.00013835,2]
[351807367,1738794650635,-504.71400859,0.00013835,2]
[351807368,1738794650645,-500.0,0.00013835,2]
[351807369,1738794650654,-500.0,0.00013835,2]
[351807370,1738794650664,-296.78825191,0.00013835,2]
[351807371,1738794650676,-500.0,0.00013835,2]
[351807372,1738794650686,-538.13432716,0.00013835,2]
[351807373,1738794650696,-500.0,0.00013835,2]
[351807374,1738794650705,-500.0,0.00013835,2]
[351807375,1738794650719,-500.0,0.00013835,2]
[351807376,1738794650729,-500.0,0.00013835,2]
[351807377,1738794650739,-500.0,0.00013835,2]
[351807378,1738794650748,-500.0,0.00013835,2]
[351807379,1738794650758,-500.0,0.00013835,2]
[351807380,1738794650768,-500.0,0.00013835,2]
[351807381,1738794650777,-1265.18,0.00013835,2]
[351807382,1738794650789,-500.0,0.00013835,2]
[351807383,1738794650801,-1550.08,0.00013835,2]
[351807384,1738794650810,-567.38,0.00013835,2]
[351807385,1738794650820,-500.0,0.00013835,2]
[351807386,1738794650830,-315.1,0.00013835,2]
[351807387,1738794650840,-501.12136402,0.00013835,2]
[351807388,1738794650851,-500.0,0.00013835,2]
[351807389,1738794650861,-500.0,0.00013835,2]
[351807390,1738794650871,-512.77007859,0.00013835,2]
[351807391,1738794650883,-500.0,0.00013835,2]
[351807392,1738794650893,-635.58214511,0.00013835,2]
[351807393,1738794650902,-462.59792942,0.00013835,2]
[351807394,1738794650912,-500.0,0.00013835,2]
[351807395,1738794650924,-500.0,0.00013835,2]
[351807396,1738794650934,-500.0,0.00013835,2]
[351807397,1738794650944,-542.55,0.00013835,2]
[351807398,1738794650954,-563.57,0.00013835,2]
[351807399,1738794650963,-500.0,0.00013835,2]
[351807400,1738794650973,-500.0,0.00013835,2]
[351807401,1738794650982,-855.78,0.00013835,2]
[351807402,1738794650992,-763.94,0.00013835,2]
[351807403,1738794651001,-500.0,0.00013835,2]
[351807404,1738794651011,-695.11,0.00013835,2]
[351807405,1738794651020,-500.0,0.00013835,2]
[351807406,1738794651030,-882.73,0.00013835,2]
[351807407,1738794651039,-969.27,0.00013835,2]
[351807408,1738794651048,-500.0,0.00013835,2]
[351807409,1738794651058,-500.0,0.00013835,2]
[351807410,1738794651067,-500.0,0.00013835,2]
[351807411,1738794651077,-500.0,0.00013835,2]
[351807412,1738794651086,-1840.85,0.00013835,2]
[351807413,1738794651096,-500.0,0.00013835,2]
[351807414,1738794651105,-1017.25,0.00013835,2]
[351807415,1738794651114,-500.0,0.00013835,2]
[351807416,1738794651123,-563.21,0.00013835,2]
[351807417,1738794651133,-500.0,0.00013835,2]
[351807418,1738794651143,-500.0,0.00013835,2]
[351807419,1738794651152,-2305.63,0.00013835,2]
[351807420,1738794651164,-500.0,0.00013835,2]
[351807421,1738794651175,-1189.5,0.00013835,2]
[351807422,1738794651184,-4176.91,0.00013835,2]
[351807423,1738794651194,-500.0,0.00013835,2]
[351807424,1738794651203,-500.0,0.00013835,2]
[351807425,1738794651212,-500.0,0.00013835,2]
[351807426,1738794651222,-500.0,0.00013835,2]
[351807427,1738794651232,-500.0,0.00013835,2]
[351807428,1738794651241,-500.0,0.00013835,2]
[351807429,1738794651251,-840.64,0.00013835,2]
[351807430,1738794651260,-658.0,0.00013835,2]
[351807431,1738794651270,-500.0,0.00013835,2]
[351807432,1738794651279,-500.0,0.00013835,2]
[351807433,1738794651289,-500.0,0.00013835,2]
[351807434,1738794651298,-500.0,0.00013835,2]
[351807435,1738794651309,-500.0,0.00013835,2]
[351807436,1738794651318,-500.0,0.00013835,2]
[351807437,1738794651328,-1831.28,0.00013835,2]
[351807438,1738794651337,-500.0,0.00013835,2]
[351807439,1738794651346,-500.0,0.00013835,2]
[351807440,1738794651356,-506.24240591,0.00013835,2]
[351807441,1738794651365,-500.0,0.00013835,2]
[351807442,1738794651375,-500.0,0.00013835,2]
[351807443,1738794651384,-500.0,0.00013835,2]
[351807444,1738794651393,-500.0,0.00013835,2]
[351807445,1738794651403,-546.9,0.00013835,2]
[351807446,1738794651412,-234.74096042,0.00013835,2]
[351807447,1738794651424,-500.0,0.00013835,2]
[351807448,1738794651433,-486.50431685,0.00013835,2]
[351807449,1738794651443,-1524.33,0.00013835,2]
[351807450,1738794651452,-500.0,0.00013835,2]
[351807451,1738794651461,-1010.79,0.00013835,2]
[351807452,1738794651471,-500.0,0.00013835,2]
[351807453,1738794651480,-500.0,0.00013835,2]
[351807454,1738794651490,-500.0,0.00013835,2]
[351807455,1738794651500,-500.0,0.00013835,2]
[351807456,1738794651510,-500.0,0.00013835,2]
[351807457,1738794651520,-500.0,0.00013835,2]
[351807458,1738794651529,-806.75,0.00013835,2]
[351807459,1738794651539,-500.0,0.00013835,2]
[351807460,1738794651549,-500.0,0.00013835,2]
[351807461,1738794651559,-500.0,0.00013835,2]
[351807462,1738794651568,-500.0,0.00013835,2]
[351807463,1738794651578,-500.0,0.00013835,2]
[351807464,1738794651588,-590.1,0.00013835,2]
[351807465,1738794651597,-500.0,0.00013835,2]
[351807466,1738794651607,-500.0,0.00013835,2]
[351807467,1738794651618,-682.04,0.00013835,2]
[351807468,1738794651627,-626.29,0.00013835,2]
[351807469,1738794651637,-500.0,0.00013835,2]
[351807470,1738794651647,-962.32,0.00013835,2]
[351807471,1738794651656,-500.0,0.00013835,2]
[351807472,1738794651667,-532.84,0.00013835,2]
[351807473,1738794651677,-631.12,0.00013835,2]
[351807474,1738794651687,-500.0,0.00013835,2]
[351807475,1738794651696,-500.0,0.00013835,2]
[351807476,1738794651706,-947.61,0.00013835,2]
[351807477,1738794651716,-500.0,0.00013835,2]
[351807478,1738794651725,-500.0,0.00013835,2]
[351807479,1738794651735,-1012.88,0.00013835,2]
[351807480,1738794651745,-725.46,0.00013835,2]
[351807481,1738794651755,-500.0,0.00013835,2]
[351807482,1738794651765,-1242.07,0.00013835,2]
[351807483,1738794651775,-706.88,0.00013835,2]
[351807484,1738794651784,-624.42513372,0.00013835,2]
[351807485,1738794651793,-500.0,0.00013835,2]
[351807486,1738794651805,-2923.91,0.00013835,2]
[351807487,1738794651815,-500.0,0.00013835,2]
[351807488,1738794651825,-569.29,0.00013835,2]
[351807489,1738794651835,-790.52,0.00013835,2]
[351807490,1738794651846,-1468.09,0.00013835,2]
[351807491,1738794651856,-3315.18,0.00013835,2]
[351807492,1738794651865,-500.0,0.00013835,2]
[351807493,1738794651876,-500.0,0.00013835,2]
[351807494,1738794651886,-500.0,0.00013835,2]
[351807495,1738794651896,-500.0,0.00013835,2]
[351807496,1738794651905,-4967.61,0.00013835,2]
[351807497,1738794651916,-500.0,0.00013835,2]
[351807498,1738794651925,-899.07,0.00013835,2]
[351807499,1738794651935,-11682.56,0.00013835,2]
[351807500,1738794651944,-1067.31,0.00013835,2]
[351807501,1738794651953,-1000.0,0.00013835,2]
[351807502,1738794651963,-500.0,0.00013835,2]
[351807503,1738794651973,-2772.52,0.00013835,2]
[351807504,1738794651982,-614.53,0.00013835,2]
[351807505,1738794651991,-585.91,0.00013835,2]
[351807506,1738794652001,-500.0,0.00013835,2]
[351807507,1738794652010,-500.0,0.00013835,2]
[351807508,1738794652019,-1984.45,0.00013835,2]
[351807509,1738794652029,-500.0,0.00013835,2]
[351807510,1738794652038,-188.0,0.00013835,2]
[351807511,1738794652048,-755.55,0.00013835,2]
[351807512,1738794652057,-500.0,0.00013835,2]
[351807513,1738794652067,-34221.79,0.00013835,2]
[351807514,1738794652076,-1442.48,0.00013835,2]
[351807515,1738794652085,-5962.74,0.00013835,2]
[351807516,1738794652095,-500.0,0.00013835,2]
[351807517,1738794652104,-500.0,0.00013835,2]
[351807518,1738794652114,-1867.03,0.00013835,2]
[351807519,1738794652123,-500.0,0.00013835,2]
[351807520,1738794652132,-1084.77,0.00013835,2]
[351807521,1738794652142,-500.0,0.00013835,2]
[351807522,1738794652151,-500.0,0.00013835,2]
[351807523,1738794652161,-874.72,0.00013835,2]
[351807524,1738794652173,-500.0,0.00013835,2]
[351807525,1738794652183,-500.0,0.00013835,2]
[351807526,1738794652193,-500.0,0.00013835,2]
[351807527,1738794652203,-500.0,0.00013835,2]
[351807528,1738794652212,-5216.47,0.00013835,2]
[351807529,1738794652222,-1577.99,0.00013835,2]
[351807530,1738794652232,-500.0,0.00013835,2]
[351807531,1738794652242,-500.0,0.00013835,2]
[351807532,1738794652252,-500.0,0.00013835,2]
[351807533,1738794652262,-1571.04,0.00013835,2]
[351807534,1738794652271,-1020.32,0.00013835,2]
[351807535,1738794652281,-644.18,0.00013835,2]
[351807536,1738794652290,-1045.55,0.00013835,2]
[351807537,1738794652300,-500.0,0.00013835,2]
[351807538,1738794652309,-2377.27,0.00013835,2]
[351807539,1738794652319,-514.52,0.00013835,2]
[351807540,1738794652328,-500.0,0.00013835,2]
[351807541,1738794652338,-500.0,0.00013835,2]
[351807542,1738794652348,-500.0,0.00013835,2]
[351807543,1738794652358,-1371.98,0.00013835,2]
[351807544,1738794652367,-500.0,0.00013835,2]
[351807545,1738794652377,-7364.57,0.00013835,2]
[351807546,1738794652429,-500.0,0.00013835,2]
[351807547,1738794652439,-500.0,0.00013835,2]
[351807548,1738794652448,-500.0,0.00013835,2]
[351807549,1738794652457,-6067.63,0.00013835,2]
[351807550,1738794652467,-821.54,0.00013835,2]
[351807551,1738794652476,-500.0,0.00013835,2]
[351807552,1738794652485,-500.0,0.00013835,2]
[351807553,1738794652494,-500.0,0.00013835,2]
[351807554,1738794652504,-515.49596102,0.00013835,2]
[351807555,1738794652514,-500.0,0.00013835,2]
[351807556,1738794652523,-11072.57,0.00013835,2]
[351807557,1738794652533,-500.0,0.00013835,2]
[351807558,1738794652543,-526.45,0.00013835,2]
[351807559,1738794652553,-500.0,0.00013835,2]
[351807560,1738794652562,-1492.49,0.00013835,2]
[351807561,1738794652572,-500.0,0.00013835,2]
[351807562,1738794652581,-2628.67,0.00013835,2]
[351807563,1738794652590,-500.0,0.00013835,2]
[351807564,1738794652599,-500.0,0.00013835,2]
[351807565,1738794652608,-500.0,0.00013835,2]
[351807566,1738794652618,-500.0,0.00013835,2]
[351807567,1738794652627,-500.0,0.00013835,2]
[351807568,1738794652636,-500.0,0.00013835,2]
[351807569,1738794652646,-500.0,0.00013835,2]
[351807570,1738794652655,-643.43,0.00013835,2]
[351807571,1738794652665,-512.9,0.00013835,2]
[351807572,1738794652677,-521.34,0.00013835,2]
[351807573,1738794652687,-510.89,0.00013835,2]
[351807574,1738794652696,-500.0,0.00013835,2]
[351807575,1738794652704,-939.6,0.00013835,2]
[351807576,1738794652714,-465.4568436,0.00013835,2]
[351807577,1738794652724,-543.95,0.00013835,2]
[351807578,1738794652733,-2545.7,0.00013835,2]
[351807579,1738794652743,-4619.05,0.00013835,2]
[351807580,1738794652752,-500.0,0.00013835,2]
[351807581,1738794652770,-500.0,0.00013835,2]
[351807582,1738794652780,-500.0,0.00013835,2]
[351807583,1738794652791,-2422.71,0.00013835,2]
[351807584,1738794652806,-34317.66,0.00013835,2]
[351807585,1738794652815,-888.9,0.00013835,2]
[351807586,1738794652826,-500.0,0.00013835,2]
[351807587,1738794652835,-500.0,0.00013835,2]
[351807588,1738794652845,-972.73,0.00013835,2]
[351807589,1738794652855,-25039.87064565,0.00013835,2]
[351807590,1738794653183,-81611.30935435,0.00013835,2]
[351807591,1738794653193,-500.0,0.00013835,2]
[351807592,1738794653204,-7158.26,0.00013835,2]
[351807593,1738794653216,-1849.9,0.00013835,2]
[351807594,1738794653225,-647.49,0.00013835,2]
[351807595,1738794653235,-4756.53,0.00013835,2]
[351807596,1738794653244,-500.0,0.00013835,2]
[351807597,1738794653255,-2982.12,0.00013835,2]
[351807598,1738794653265,-500.0,0.00013835,2]
[351807599,1738794653274,-3717.66,0.00013835,2]
[351807600,1738794653284,-500.0,0.00013835,2]
[351807601,1738794653294,-500.0,0.00013835,2]
[351807602,1738794653304,-500.0,0.00013835,2]
[351807603,1738794653314,-500.0,0.00013835,2]
[351807604,1738794653323,-500.0,0.00013835,2]
[351807605,1738794653333,-382.041907,0.00013835,2]
[351807606,1738794653343,-910.59,0.00013835,2]
[351807607,1738794653352,-902.54,0.00013835,2]
[351807608,1738794653363,-2736.14,0.00013835,2]
[351807609,1738794653372,-2903.45,0.00013835,2]
[351807610,1738794653382,-3081.0,0.00013835,2]
[351807611,1738794653391,-532.82,0.00013835,2]
[351807612,1738794653401,-500.0,0.00013835,2]
[351807613,1738794653410,-500.0,0.00013835,2]
[351807614,1738794653424,-500.0,0.00013835,2]
[351807615,1738794653434,-500.0,0.00013835,2]
[351807616,1738794653443,-500.0,0.00013835,2]
[351807617,1738794653453,-669.39,0.00013835,2]
[351807618,1738794653463,-513.0595766,0.00013835,2]
[351807619,1738794653473,-500.0,0.00013835,2]
[351807620,1738794653482,-500.0,0.00013835,2]
[351807621,1738794653492,-669.62,0.00013835,2]
[351807622,1738794653501,-2722.59,0.00013835,2]
[351807623,1738794653511,-500.0,0.00013835,2]
[351807624,1738794653521,-500.0,0.00013835,2]
[351807625,1738794653531,-500.0,0.00013835,2]
[351807626,1738794653541,-500.0,0.00013835,2]
[351807627,1738794653551,-500.0,0.00013835,2]
[351807628,1738794653561,-3374.73,0.00013835,2]
[351807629,1738794653570,-500.0,0.00013835,2]
[351807630,1738794653580,-500.0,0.00013835,2]
[351807631,1738794653589,-892.94,0.00013835,2]
[351807632,1738794653599,-302.83583283,0.00013835,2]
[351807633,1738794653608,-1246.0,0.00013835,2]
[351807634,1738794653618,-1265.5,0.00013835,2]
[351807635,1738794653629,-557.59,0.00013835,2]
[351807636,1738794653639,-500.0,0.00013835,2]
[351807637,1738794653649,-943.77,0.00013835,2]
[351807638,1738794653659,-500.0,0.00013835,2]
[351807639,1738794653671,-607.6328422,0.00013835,2]
[351807640,1738794653681,-587.09,0.00013835,2]
[351807641,1738794653690,-672.48,0.00013835,2]
[351807642,1738794653700,-501.54869697,0.00013835,2]
[351807643,1738794653710,-500.0,0.00013835,2]
[351807644,1738794653720,-500.0,0.00013835,2]
[351807645,1738794653729,-705.43,0.00013835,2]
[351807646,1738794653739,-593.06,0.00013835,2]
[351807647,1738794653749,-500.0,0.00013835,2]
[351807648,1738794653760,-500.0,0.00013835,2]
[351807649,1738794653769,-500.0,0.00013835,2]
[351807650,1738794653779,-500.0,0.00013835,2]
[351807651,1738794653790,-529.75,0.00013835,2]
[351807652,1738794653802,-500.0,0.00013835,2]
[351807653,1738794653812,-512.00962202,0.00013835,2]